bitfinex-derivatives/quotes_SOLF0:USTF0_20250505
["timestamp","ask_amount","ask_price","bid_price","bid_amount"]
[1746453606714,31.46,145.3,145.02,31.46]
[1746453606914,2.0165,145.27,145.03,1.0015]
[1746453607307,6.885,145.24,145.03,1.0015]
[1746453607507,31.44,145.25,145.03,1.0015]
[1746453607709,2.0413,145.24,145.03,1.0015]
[1746453607910,6.8859,145.22,145.1,6.8914]
[1746453608116,6.8859,145.22,145.11,33.4236]
[1746453608303,31.44,145.35,145.12,39.24468162]
[1746453608513,4.0699,145.26,145.12,32.4415]
[1746453608710,32.68,145.25,145.12,31.44]
[1746453609115,32.68,145.25,145.07,1.0015]
[1746453609608,32.68,145.25,145.08,2.094]
[1746453609816,32.68,145.25,145.08,34.774]
[1746453610012,32.68,145.25,145.09,6.80222286]
[1746453610215,32.68,145.25,145.08,34.774]
[1746453610415,32.68,145.25,145.09,6.80474891]
[1746453610616,39.5644,145.25,145.1,6.80474891]
[1746453610819,39.5644,145.25,145.11,6.8162586]
[1746453611010,39.5644,145.25,145.12,6.81566741]
[1746453611210,39.5644,145.25,145.13,32.68]
[1746453611411,6.8851,145.24,145.14,1.0015]
[1746453611717,32.68,145.25,145.14,1.0015]
[1746453611918,6.886,145.22,145.13,32.68]
[1746453612121,32.68,145.25,145.13,32.68]
[1746453612616,4.0699,145.26,145.13,32.68]
[1746453612914,2.0534,145.26,145.13,32.68]
[1746453613120,6.8821,145.3,145.18,6.8873]
[1746453613320,32.66,145.33,145.19,37.7825]
[1746453613618,32.66,145.33,145.2,32.66]
[1746453614115,32.66,145.33,145.2,34.7311]
[1746453614323,32.66,145.37,145.2,34.7311]
[1746453615210,32.66,145.37,145.2,41.6174]
[1746453615621,32.66,145.37,145.2,34.7311]
[1746453615820,6.8828,145.29,145.2,34.7311]
[1746453616216,32.64,145.31,145.2,34.7311]
[1746453616618,39.5216,145.31,145.2,34.7311]
[1746453616817,32.64,145.31,145.2,34.7311]
[1746453617017,4.1538,145.3,145.2,34.7311]
[1746453617218,6.882,145.3,145.21,1.37731561]
[1746453617418,32.64,145.31,145.21,1.37731561]
[1746453618519,6.8825,145.29,145.21,1.37731561]
[1746453618717,32.64,145.31,145.21,1.37731561]
[1746453619118,2.0027,145.3,145.21,1.37731561]
[1746453619517,1.9988,145.29,145.21,1.37731561]
[1746453620117,2.1143,145.28,145.21,1.37731561]
[1746453621214,2.1143,145.28,145.13,6.8897]
[1746453621215,2.1143,145.28,145.13,33.86]
[1746453621610,2.1143,145.28,145.14,1.37797988]
[1746453623218,6.8857,145.23,145.14,1.37797988]
[1746453623417,33.86,145.22,145.14,1.37797988]
[1746453624225,2.1143,145.28,145.14,1.37797988]
[1746453624417,33.86,145.26,145.14,1.37797988]
[1746453625512,33.86,145.26,145.15,2.0241]
[1746453627222,2.1143,145.28,145.15,2.0241]
[1746453628924,2.1143,145.28,145.19,6.8871]
[1746453629118,1.9988,145.29,145.2,33.86]
[1746453629420,552.3993,145.36,145.22,6.8853]
[1746453629610,38.0761,145.35,145.23,2.1603]
[1746453629817,38.0761,145.35,145.21,2.027]
[1746453630022,2.0914,145.34,145.21,2.027]
[1746453630920,6.8818,145.31,145.21,2.027]
[1746453631125,2.0914,145.34,145.21,2.027]
[1746453631521,1.25230044,145.33,145.21,2.027]
[1746453631821,2.0914,145.34,145.2,35.9197]
[1746453632025,2.0914,145.34,145.2,33.86]
[1746453632225,2.0914,145.34,145.17,545.52]
[1746453632526,1.25257535,145.33,145.17,545.52]
[1746453633224,6.8842,145.26,145.17,545.52]
[1746453633426,4.009,145.25,145.16,33.84]
[1746453633622,6.0606,145.25,145.16,33.84]
[1746453633819,12.945,145.25,145.13,33.84]
[1746453634227,6.0606,145.25,145.13,72.95478417]
[1746453634526,6.0606,145.25,145.13,66.06488417]
[1746453634724,4.009,145.25,145.18,6.8875]
[1746453634923,33.84,145.3,145.19,33.84]
[1746453635222,33.84,145.34,145.2,40.1902]
[1746453635421,33.84,145.34,145.21,33.84]
[1746453636321,33.84,145.38,145.21,33.84]
[1746453636525,33.84,145.41,145.21,33.84]
[1746453637320,2.1541,145.43,145.21,33.84]
[1746453637526,6.8743,145.47,145.33,6.8805]
[1746453637726,6.8743,145.47,145.34,35.9471]
[1746453638034,6.8731,145.49,145.34,35.9471]
[1746453638229,6.8731,145.49,145.35,1.9975]
[1746453638528,35.9941,145.5,145.35,1.9975]
[1746453639227,35.9941,145.5,145.36,1.37589433]
[1746453640626,6.8744,145.46,145.36,1.37589433]
[1746453640928,33.82,145.45,145.36,1.37589433]
[1746453641323,33.82,145.45,145.24,545.12]
[1746453641529,33.82,145.45,145.25,35.19693631]
[1746453641728,1.25155937,145.44,145.25,35.19693631]
[1746453641929,6.879,145.37,145.25,35.19693631]
[1746453642132,2.1398,145.36,145.25,35.19693631]
[1746453642325,33.82,145.41,145.25,35.19693631]
[1746453642835,2.0104,145.46,145.29,6.882]
[1746453643031,33.82,145.45,145.3,33.82]
[1746453643533,1.25140285,145.44,145.25,42.08103631]
[1746453643726,2.44896643,145.44,145.25,42.08103631]
[1746453643930,1.25140285,145.43,145.25,35.19693631]
[1746453644232,6.8794,145.36,145.25,35.19693631]
[1746453644534,35.8304,145.35,145.25,35.19693631]
[1746453645834,33.82,145.39,145.25,35.19693631]
[1746453646132,33.82,145.39,145.28,6.8825]
[1746453646337,33.82,145.39,145.25,35.19693631]
[1746453647139,33.82,145.39,145.31,7.97544455]
[1746453647534,6.8788,145.37,145.31,7.97544455]
[1746453648838,40.6979,145.39,145.31,7.97544455]
[1746453649128,33.82,145.39,145.3,41.87544455]
[1746453649336,35.874,145.41,145.3,41.87544455]
[1746453650031,6.8776,145.4,145.3,41.87544455]
[1746453650530,35.874,145.41,145.3,41.87544455]
[1746453650734,6.8791,145.36,145.3,7.97544455]
[1746453650932,33.9,145.36,145.3,7.97544455]
[1746453651132,1.974,145.41,145.3,7.97544455]
[1746453651830,1.974,145.41,145.31,39.10282513]
[1746453652938,1.974,145.41,145.32,8.25677305]
[1746453653833,4.0965,145.42,145.32,8.25677305]
[1746453654035,1.9952,145.42,145.33,6.8801]
[1746453654235,33.9,145.43,145.32,3.46147305]
[1746453654437,33.9,145.43,145.33,1.9812]
[1746453655240,1.9829,145.46,145.33,1.9812]
[1746453655738,1.9829,145.46,145.32,1.37627305]
[1746453657139,544.96,145.45,145.32,1.37627305]
[1746453657341,546.21124532,145.45,145.32,1.37627305]
[1746453657536,6.8776,145.4,145.32,1.37627305]
[1746453657737,40.0395,145.39,145.32,9.3517176]
[1746453660341,33.9,145.39,145.32,9.3517176]
[1746453660549,33.9,145.39,145.32,16.2325176]
[1746453660745,33.9,145.39,145.32,1.37627305]
[1746453662242,33.9,145.39,145.32,8.25677305]
[1746453662644,33.9,145.39,145.32,1.37627305]
[1746453664643,33.9,145.39,145.26,31.90177821]
[1746453664847,54.62,145.39,145.25,7.97544455]
[1746453665051,1.19807894,145.38,145.25,7.97544455]
[1746453665341,1.25217554,145.37,145.24,4.95503366]
[1746453665549,544.86,145.36,145.24,3.89273366]
[1746453665740,1.25217554,145.35,145.24,3.89273366]
[1746453665937,33.9,145.34,145.24,3.89273366]
[1746453666140,6.8842,145.26,145.24,3.89273366]
[1746453666340,33.9,145.25,145.24,3.89273366]
[1746453666538,40.7843,145.25,145.23,116.05350942]
[1746453666742,33.9,145.25,145.2,398.7722276]
[1746453667140,40.7844,145.25,145.2,398.7722276]
[1746453668056,40.7844,145.25,145.14,1.9866]
[1746453668251,33.9,145.25,145.14,1.9866]
[1746453668655,545.04,145.26,145.14,1.9866]
[1746453668952,578.94,145.26,145.14,1.9866]
[1746453669254,6.8853,145.23,145.14,1.9866]
[1746453669548,578.94,145.26,145.14,1.9866]
[1746453670049,33.9,145.26,145.14,1.9866]
[1746453670352,33.9,145.26,145.24,6.8846]
[1746453670549,33.9,145.26,145.18,33.92]
[1746453670754,33.9,145.26,145.19,1.9586]
[1746453670953,33.92,145.31,145.19,1.9586]
[1746453671146,33.92,145.31,145.28,6.8826]
[1746453671448,33.92,145.31,145.23,33.92]
[1746453671649,33.92,145.31,145.24,4.156]
[1746453672053,24.15603813,145.34,145.24,4.156]
[1746453673047,24.15603813,145.34,145.24,5.53303112]
[1746453673252,31.03623813,145.34,145.29,6.882]
[1746453673855,6.8807,145.33,145.28,6.8827]
[1746453674050,24.15603813,145.34,145.24,5.53303112]
[1746453674452,24.15603813,145.34,145.24,1.37703112]
[1746453674749,33.92,145.36,145.24,1.37703112]
[1746453675154,6.884,145.26,145.24,1.37703112]
[1746453675750,33.92,145.28,145.15,585.2356]
[1746453676253,33.92,145.28,145.21,6.8858]
[1746453676453,33.92,145.28,145.15,585.2356]
[1746453676652,6.8839,145.26,145.21,6.8862]
[1746453676954,33.92,145.28,145.15,585.2356]
[1746453677154,33.92,145.28,145.22,6.8854]
[1746453677453,33.92,145.28,145.16,30.09667623]
[1746453677648,6.8852,145.24,145.19,6.8868]
[1746453677856,33.92,145.28,145.15,585.2356]
[1746453678154,33.92,145.28,145.19,6.8871]
[1746453678453,33.92,145.28,145.15,585.2356]
[1746453679251,33.92,145.28,145.18,30.09667623]
[1746453679460,33.92,145.28,145.19,33.54]
[1746453681452,33.92,145.28,145.21,30.09667623]
[1746453681654,33.54,145.32,145.21,30.09667623]
[1746453681850,40.4213,145.32,145.28,6.8826]
[1746453682153,33.54,145.33,145.24,30.09667623]
[1746453682352,33.54,145.33,145.3,6.8815]
[1746453682553,33.54,145.33,145.25,5.9935]
[1746453682753,24.15603813,145.36,145.25,5.9935]
[1746453682943,24.15603813,145.36,145.33,6.8803]
[1746453683350,24.15603813,145.36,145.28,33.54]
[1746453683544,31.03543813,145.36,145.28,33.54]
[1746453684054,24.15603813,145.36,145.3,6.8816]
[1746453684356,24.15603813,145.36,145.28,33.54]
[1746453684552,33.54,145.39,145.31,6.8813]
[1746453684751,33.54,145.39,145.28,33.54]
[1746453685653,6.8804,145.34,145.3,6.8818]
[1746453685853,33.54,145.39,145.28,33.54]
[1746453686057,6.8799,145.35,145.3,6.8818]
[1746453686254,33.54,145.39,145.28,33.54]
[1746453686657,6.8803,145.34,145.29,6.8821]
[1746453686860,33.54,145.39,145.28,33.54]
[1746453687157,33.52,145.35,145.28,33.54]
[1746453687451,33.52,145.36,145.28,33.54]
[1746453687958,33.52,145.4,145.3,30.09667623]
[1746453688349,6.8783,145.38,145.34,6.8797]
[1746453688559,33.52,145.4,145.3,30.09667623]
[1746453688857,40.3973,145.4,145.3,30.09667623]
[1746453689260,33.52,145.4,145.36,6.879]
[1746453689460,33.52,145.4,145.33,33.52]
[1746453689662,33.52,145.4,145.34,4.0871]
[1746453689855,40.3972,145.4,145.36,6.8786]
[1746453690060,33.52,145.4,145.34,4.0871]
[1746453690255,578.78,145.44,145.34,6.2277]
[1746453690458,578.78,145.44,145.33,33.52]
[1746453690858,578.78,145.44,145.33,40.4002]
[1746453691059,578.78,145.44,145.33,33.52]
[1746453691556,6.8786,145.37,145.33,33.52]
[1746453691861,63.61667623,145.4,145.29,33.52]
[1746453692061,63.61667623,145.4,145.28,2.1406]
[1746453692359,30.09667623,145.37,145.26,4.1043]
[1746453692555,33.52,145.4,145.26,4.1043]
[1746453692757,30.09667623,145.39,145.26,4.1043]
[1746453692956,6.8798,145.35,145.26,4.1043]
[1746453693160,33.52,145.4,145.26,4.1043]
[1746453693361,33.52,145.39,145.26,4.1043]
[1746453693560,33.52,145.39,145.28,30.09667623]
[1746453693765,33.52,145.39,145.31,30.09667623]
[1746453694062,6.8784,145.38,145.34,6.8797]
[1746453694263,33.52,145.39,145.34,6.8797]
[1746453694460,33.52,145.39,145.32,2.0164]
[1746453694659,6.8794,145.36,145.32,8.8971]
[1746453695163,6.8783,145.38,145.34,6.8797]
[1746453695968,40.3979,145.39,145.35,6.8795]
[1746453696161,40.3979,145.39,145.32,2.0164]
[1746453696355,33.52,145.39,145.32,2.0164]
[1746453696865,33.52,145.39,145.29,33.52]
[1746453697964,33.52,145.39,145.34,6.8797]
[1746453698173,33.52,145.39,145.29,63.61667623]
[1746453698379,6.8793,145.36,145.33,6.8801]
[1746453698671,33.52,145.39,145.29,63.61667623]
[1746453698872,6.8789,145.37,145.29,63.61667623]
[1746453699174,33.52,145.39,145.29,33.52]
[1746453699376,6.8796,145.35,145.32,6.8809]
[1746453699568,6.8796,145.35,145.29,33.52]
[1746453699569,33.52,145.39,145.29,33.52]
[1746453699974,6.8789,145.37,145.34,6.8798]
[1746453700274,33.52,145.39,145.29,33.52]
[1746453701179,6.879,145.37,145.34,6.8798]
[1746453701372,33.52,145.39,145.29,33.52]
[1746453702176,6.8792,145.36,145.29,33.52]
[1746453702370,33.52,145.39,145.29,33.52]
[1746453702679,6.8788,145.37,145.29,33.52]
[1746453703073,33.52,145.39,145.29,33.52]
[1746453703368,6.8803,145.34,145.29,33.52]
[1746453703675,33.52,145.39,145.29,33.52]
[1746453704278,6.8791,145.36,145.32,6.8805]
[1746453704480,33.52,145.39,145.32,6.8805]
[1746453705279,33.52,145.39,145.29,33.52]
[1746453706075,77.37267623,145.39,145.27,2.62824]
[1746453706381,77.37267623,145.39,145.27,0.47664]
[1746453706781,77.37267623,145.39,145.29,6.8821]
[1746453707182,77.37267623,145.39,145.27,0.47664]
[1746453707374,77.37267623,145.39,145.3,6.8818]
[1746453707783,6.8804,145.34,145.3,6.8818]
[1746453707987,77.37267623,145.39,145.29,6.8822]
[1746453708182,32.3,145.35,145.27,0.47664]
[1746453708383,32.3,145.35,145.28,6.8824]
[1746453708784,32.3,145.35,145.27,0.47664]
[1746453709379,6.8807,145.33,145.27,0.47664]
[1746453709576,32.3,145.35,145.31,6.8814]
[1746453709783,32.3,145.35,145.27,0.47664]
[1746453710083,32.3,145.35,145.29,6.882]
[1746453710285,32.3,145.35,145.27,0.47664]
[1746453710481,6.8812,145.32,145.27,0.47664]
[1746453710785,32.3,145.35,145.27,0.47664]
[1746453710984,32.3,145.35,145.28,30.09667623]
[1746453711286,32.3,145.35,145.29,2.0148]
[1746453711585,32.3,145.35,145.31,6.8814]
[1746453711785,32.3,145.35,145.29,2.0148]
[1746453712177,32.3,145.35,145.3,6.8815]
[1746453712383,32.3,145.35,145.29,2.0148]
[1746453712986,6.8808,145.33,145.29,2.0148]
[1746453713186,32.3,145.35,145.27,0.47664]
[1746453713382,6.8827,145.29,145.27,0.47664]
[1746453713790,13.7602,145.34,145.27,0.47664]
[1746453714085,6.8829,145.28,145.27,0.47664]
[1746453714286,32.3,145.3,145.21,36.3781]
[1746453715190,6.8825,145.29,145.25,6.884]
[1746453715488,32.3,145.3,145.22,30.09667623]
[1746453715787,32.3,145.35,145.22,30.09667623]
[1746453715985,24.15603813,145.33,145.22,30.09667623]
[1746453716181,24.15603813,145.33,145.21,36.3781]
[1746453716689,24.15603813,145.33,145.22,30.09667623]
[1746453716892,6.8822,145.3,145.27,6.8831]
[1746453717087,24.15603813,145.33,145.22,30.09667623]
[1746453717283,6.8812,145.32,145.29,6.8823]
[1746453717484,24.15603813,145.33,145.25,62.39667623]
[1746453717884,24.15603813,145.33,145.32,6.881]
[1746453718284,32.3,145.35,145.33,6.8802]
[1746453718591,24.15603813,145.37,145.29,32.3]
[1746453718791,24.15603813,145.37,145.29,38.6341]
[1746453719092,31.03483813,145.37,145.34,6.8797]
[1746453719293,24.15603813,145.37,145.34,6.8797]
[1746453719488,6.8791,145.36,145.29,38.6341]
[1746453719683,24.15603813,145.37,145.29,38.6341]
[1746453719883,24.15603813,145.37,145.35,6.8792]
[1746453720097,32.3,145.39,145.35,6.8792]
[1746453720390,32.3,145.39,145.31,30.09667623]
[1746453720595,24.15603813,145.42,145.37,6.8784]
[1746453720798,24.15603813,145.42,145.31,30.09667623]
[1746453721590,6.8773,145.4,145.37,6.8784]
[1746453721792,24.15603813,145.42,145.34,32.3]
[1746453722095,6.8774,145.4,145.37,6.8782]
[1746453722401,24.15603813,145.42,145.37,6.8782]
[1746453722596,6.8784,145.38,145.35,6.8795]
[1746453723086,32.3,145.43,145.34,32.3]
[1746453723700,6.8768,145.41,145.38,6.8779]
[1746453723996,32.3,145.43,145.34,32.3]
[1746453724185,32.3,145.43,145.34,62.39667623]
[1746453724391,39.176,145.43,145.4,6.8768]
[1746453725398,32.3,145.43,145.41,6.8766]
[1746453725695,32.3,145.43,145.34,62.39667623]
[1746453725890,545.02,145.47,145.34,62.39667623]
[1746453726089,577.32,145.47,145.37,30.09667623]
[1746453726294,577.32,145.47,145.38,38.4235]
[1746453726994,6.877,145.41,145.38,45.3015]
[1746453727297,6.877,145.41,145.38,36.3377]
[1746453727492,577.32,145.47,145.38,36.3377]
[1746453727796,6.8764,145.42,145.39,6.8774]
[1746453727993,577.32,145.47,145.38,4.0377]
[1746453728189,577.32,145.47,145.38,2.0054]
[1746453728397,607.41667623,145.47,145.34,4.2502]
[1746453728597,6.8775,145.4,145.36,6.8786]
[1746453728801,6.8775,145.4,145.34,4.2502]
[1746453729099,32.3,145.43,145.34,4.2502]
[1746453729803,6.8786,145.37,145.34,11.1299]
[1746453730195,32.3,145.43,145.34,4.2502]
[1746453730397,6.88,145.35,145.32,6.8809]
[1746453730603,32.28,145.39,145.29,32.28]
[1746453730901,32.28,145.38,145.29,32.28]
[1746453732602,6.8799,145.35,145.29,32.28]
[1746453732803,6.8799,145.35,145.29,33.28]
[1746453733004,32.28,145.38,145.29,33.28]
[1746453733206,32.28,145.38,145.29,1.0]
[1746453734106,32.28,145.38,145.3,6.8816]
[1746453734309,32.28,145.38,145.29,1.0]
[1746453735007,32.28,145.38,145.3,4.0917]
[1746453735203,6.8788,145.37,145.3,6.0813]
[1746453735397,32.28,145.38,145.3,6.0813]
[1746453736100,24.30637245,145.41,145.31,30.09667623]
[1746453736299,56.60637245,145.41,145.34,30.09667623]
[1746453736509,56.60637245,145.41,145.39,6.8776]
[1746453736708,24.30637245,145.41,145.34,30.09667623]
[1746453737012,31.18337245,145.41,145.38,6.8779]
[1746453737310,6.877,145.41,145.38,6.8779]
[1746453737506,6.8764,145.42,145.39,6.8775]
[1746453737807,24.30637245,145.43,145.34,30.09667623]
[1746453738404,31.24,145.42,145.33,32.3]
[1746453738607,6.8784,145.38,145.35,6.8792]
[1746453738801,31.24,145.42,145.33,32.3]
[1746453739006,31.24,145.42,145.3,37.3213]
[1746453739708,31.24,145.42,145.34,6.8797]
[1746453740010,31.24,145.42,145.3,37.3213]
[1746453740206,6.8792,145.36,145.3,37.3213]
[1746453740407,31.24,145.42,145.3,37.3213]
[1746453740612,31.24,145.42,145.31,30.09667623]
[1746453740909,31.24,145.45,145.34,30.09667623]
[1746453741111,31.24,145.45,145.35,31.24]
[1746453741911,6.8777,145.39,145.35,31.24]
[1746453742418,6.8777,145.39,145.36,6.8787]
[1746453742809,31.24,145.45,145.35,31.24]
[1746453743903,6.8765,145.42,145.38,6.8778]
[1746453744110,31.24,145.45,145.35,31.24]
[1746453744914,6.8765,145.42,145.38,6.8777]
[1746453745116,31.24,145.45,145.35,31.24]
[1746453745417,6.8763,145.42,145.35,31.24]
[1746453745717,31.24,145.41,145.32,31.24]
[1746453745916,31.24,145.4,145.32,31.24]
[1746453746214,31.24,145.4,145.3,6.0813]
[1746453746514,6.8792,145.36,145.33,6.8802]
[1746453746905,31.24,145.4,145.3,6.0813]
[1746453747106,31.24,145.4,145.3,4.0917]
[1746453747609,6.8798,145.35,145.31,6.8814]
[1746453748103,31.24,145.4,145.3,4.0917]
[1746453748718,6.8781,145.39,145.3,4.0917]
[1746453748917,31.24,145.4,145.3,4.0917]
[1746453749217,6.8784,145.38,145.3,4.0917]
[1746453749517,31.24,145.4,145.3,4.0917]
[1746453749707,6.8793,145.36,145.33,6.8803]
[1746453749911,31.24,145.4,145.3,4.0917]
[1746453750314,6.8812,145.32,145.29,7.8822]
[1746453750508,31.24,145.35,145.29,1.0]
[1746453750709,30.09667623,145.37,145.29,1.0]
[1746453750710,6.8819,145.3,145.29,1.0]
[1746453750918,31.24,145.3,145.23,4.0425]
[1746453751217,31.24,145.3,145.23,2.0679]
[1746453752118,31.24,145.3,145.2,31.24]
[1746453752520,6.8846,145.25,145.21,6.8858]
[1746453752818,6.8846,145.25,145.2,31.24]
[1746453753216,6.8846,145.25,145.22,6.8857]
[1746453753517,6.884,145.26,145.22,6.8857]
[1746453754118,31.24,145.3,145.2,31.24]
[1746453754527,31.24,145.3,145.21,6.8857]
[1746453754734,31.24,145.3,145.2,31.24]
[1746453754930,31.24,145.3,145.19,3.9688]
[1746453755130,31.24,145.3,145.23,6.8852]
[1746453755325,31.24,145.3,145.19,3.9688]
[1746453756434,6.8826,145.29,145.26,6.8835]
[1746453756633,31.24,145.3,145.21,61.33667623]
[1746453756831,6.8837,145.27,145.21,61.33667623]
[1746453757032,31.24,145.3,145.21,31.24]
[1746453757229,24.30637245,145.34,145.21,61.33667623]
[1746453757533,31.26,145.33,145.21,61.33667623]
[1746453757932,6.8825,145.29,145.26,6.8836]
[1746453758332,31.26,145.33,145.21,61.33667623]
[1746453758529,6.8833,145.28,145.21,31.24]
[1746453758728,31.26,145.33,145.21,31.24]
[1746453758936,31.26,145.32,145.21,31.24]
[1746453759138,61.35667623,145.32,145.2,1.9533]
[1746453759436,30.09667623,145.29,145.18,31.26]
[1746453759638,31.26,145.28,145.19,6.8869]
[1746453759834,31.26,145.28,145.17,2.0827]
[1746453760637,6.8844,145.25,145.17,2.0827]
[1746453760938,31.26,145.28,145.18,30.09667623]
[1746453761130,38.1431,145.28,145.19,31.26]
[1746453761330,6.8831,145.28,145.19,31.26]
[1746453761627,31.26,145.31,145.21,30.09667623]
[1746453761825,31.26,145.31,145.22,4.2003]
[1746453762027,31.26,145.31,145.23,31.26]
[1746453762839,31.26,145.31,145.22,4.2003]
[1746453763240,6.884,145.26,145.23,6.8852]
[1746453763436,31.26,145.31,145.22,4.2003]
[1746453763735,6.8832,145.28,145.25,6.884]
[1746453763939,31.26,145.31,145.22,4.2003]
[1746453764840,38.1416,145.31,145.28,6.8828]
[1746453765039,31.26,145.31,145.22,4.2003]
[1746453765440,6.8822,145.3,145.22,4.2003]
[1746453765641,31.26,145.31,145.22,4.2003]
[1746453765841,31.26,145.35,145.24,30.09667623]
[1746453766139,6.881,145.32,145.25,33.313]
[1746453766533,31.26,145.35,145.25,33.313]
[1746453766835,576.34,145.36,145.25,33.313]
[1746453768040,31.26,145.39,145.28,30.09667623]
[1746453768239,31.26,145.39,145.29,35.2519]
[1746453768434,31.26,145.39,145.32,6.8807]
[1746453768833,31.26,145.39,145.29,35.2519]
[1746453769041,6.8791,145.36,145.32,6.881]
[1746453769236,31.26,145.39,145.29,35.2519]
[1746453769543,6.88,145.35,145.3,6.8818]
[1746453769740,31.26,145.39,145.29,35.2519]
[1746453770640,31.26,145.39,145.31,6.8812]
[1746453771145,31.26,145.39,145.32,6.8807]
[1746453771340,31.26,145.39,145.29,35.2519]
[1746453772245,6.8784,145.38,145.35,6.8795]
[1746453773045,38.1379,145.39,145.35,6.8795]
[1746453773339,31.26,145.39,145.35,6.8795]
[1746453773736,31.26,145.39,145.36,6.8788]
[1746453773945,30.3,145.42,145.29,35.2519]
[1746453774141,30.3,145.42,145.31,30.09667623]
[1746453774335,6.877,145.41,145.37,6.8785]
[1746453774531,6.877,145.41,145.34,30.3]
[1746453774732,30.3,145.42,145.34,30.3]
[1746453775243,545.12,145.44,145.34,60.39667623]
[1746453775442,37.175,145.45,145.41,6.8764]
[1746453775741,50.68319245,145.47,145.38,30.3]
[1746453776037,30.09667623,145.46,145.34,30.3]
[1746453776245,30.09667623,145.46,145.32,2.0332]
[1746453776539,6.8786,145.37,145.34,6.8799]
[1746453776947,30.3,145.41,145.34,6.8799]
[1746453777243,30.3,145.41,145.32,2.0332]
[1746453778244,6.8781,145.39,145.35,6.8793]
[1746453778642,30.3,145.41,145.35,6.8793]
[1746453779248,6.8781,145.39,145.36,6.8791]
[1746453779849,6.8774,145.4,145.37,6.8786]
[1746453780151,30.3,145.41,145.32,2.0332]
[1746453780344,30.3,145.41,145.32,8.9137]
[1746453780345,6.8795,145.36,145.32,8.9137]
[1746453780540,30.3,145.41,145.32,2.0332]
[1746453780745,30.3,145.41,145.31,30.3]
[1746453781049,30.3,145.41,145.3,6.8817]
[1746453781348,30.3,145.41,145.29,3.9919]
[1746453781949,30.3,145.41,145.36,6.8786]
[1746453781950,6.8774,145.4,145.36,6.8786]
[1746453782246,30.3,145.41,145.3,30.3]
[1746453782447,6.8795,145.36,145.3,30.3]
[1746453782642,30.3,145.41,145.3,30.3]
[1746453783245,30.3,145.41,145.29,3.9919]
[1746453783546,588.69117623,145.4,145.28,6.8826]
[1746453783942,588.69117623,145.4,145.27,32.4245]
[1746453784753,558.5945,145.4,145.27,30.3]
[1746453784954,30.09667623,145.37,145.24,32.3697]
[1746453785161,30.3,145.36,145.24,32.3697]
[1746453785349,30.09667623,145.34,145.24,30.3]
[1746453785545,30.09667623,145.34,145.23,4.142]
[1746453785750,6.8816,145.31,145.27,6.8833]
[1746453786056,30.3,145.3,145.27,6.8833]
[1746453786256,30.3,145.3,145.28,6.8826]
[1746453786452,30.3,145.3,145.23,4.142]
[1746453786957,30.3,145.3,145.28,6.8825]
[1746453787356,30.3,145.3,145.23,4.142]
[1746453787546,30.3,145.33,145.23,4.142]
[1746453788359,30.3,145.33,145.24,13.7694]
[1746453788558,30.3,145.33,145.32,6.881]